Cogmind - Beta 16 @@@ ROGUE MODE // 2025.12.03 @ 14:13:46 Player: Lazz Result: Destroyed by AC-I2U(R) with Subdweller Machine Gun Performance ------------- Evolutions (0) 0 Regions Visited (3) 600 Robots Destroyed (8) 40 Value Destroyed (96) 96 Prototype IDs (0) 0 Alien Tech Used (0) 0 Bonus (0) 0 TOTAL SCORE: 736 Bonus ------- None Cogmind --------- Core Integrity 0/250 Matter 212/300 Energy 95/100 System Corruption 0% Temperature Cool (0) Movement Rolling (150) Ox4 Location -10/Subcaves Parts ------- > --- POWER (1) -------- (None) > --- PROPULSION (2) --- Subdweller Monowheel > --- UTILITY (2) ------ Huge Storage Unit Makeshift Thermal Plating > --- WEAPON (2) ------- Bore Cannon > --- INVENTORY (25) --- Light Treads Light Treads Armored Treads Wheel Wheel Compact Wheel Subdweller Monowheel Small Storage Unit Subdweller Optics Improved Terrain Scanner Seismic Detector Reaction Control System High-powered Tractor Beam Medium Laser Medium Laser Subdweller Laser Subdweller Machine Gun High-powered Shotgun High-powered Shotgun Barrage Gun Mining Laser Katana Axe Scrap Shield Fragment (32) Scrap Shield Fragment (14) Peak State ------------ > --- POWER ------------ (None) > --- PROPULSION ------- Subdweller Monowheel Subdweller Monowheel > --- UTILITY ---------- Huge Storage Unit Makeshift Thermal Plating > --- WEAPON ----------- EM Pulse Cannon Bore Cannon > --- INVENTORY -------- Light Treads Light Treads Armored Treads Wheel Wheel Compact Wheel Subdweller Monowheel Small Storage Unit Subdweller Optics Improved Terrain Scanner Seismic Detector Reaction Control System High-powered Tractor Beam Medium Laser Medium Laser Subdweller Laser Subdweller Machine Gun High-powered Shotgun High-powered Shotgun Barrage Gun Mining Laser Katana Axe Scrap Shield Fragment Scrap Shield Fragment [Rating: 21] Favorites ----------- Power Ion Engine Engine Ion Engine Propulsion Compact Wheel Wheel Compact Wheel Utility Seismic Detector Device Seismic Detector Storage Huge Storage Unit Protection Makeshift Thermal Plating Weapon Medium Laser Energy Gun Medium Laser Energy Cannon EM Pulse Cannon Ballistic Cannon Bore Cannon Build | -11 -10 -10 -10 ------- Run | Yrd Mat Min Sub Slots Evolved . | . . . . Power . | . . . . Propulsion . | . . . . Utility . | . . . . Weapon . | . . . . Parts Attached 14 | 7 . 2 5 Power 1 | 1 . . . Engine 1 | 1 . . . Core . | . . . . Reactor . | . . . . Propulsion 5 | 2 . 1 2 Treads . | . . . . Leg . | . . . . Wheel 5 | 2 . 1 2 Hover . | . . . . Flight . | . . . . Utility 4 | 2 . 1 1 Device 1 | 1 . . . Storage 2 | 1 . 1 . Processor . | . . . . Hackware . | . . . . Protection 1 | . . . 1 Artifact . | . . . . Weapon 4 | 2 . . 2 Energy Gun 2 | 2 . . . Energy Cannon 1 | . . . 1 Ballistic Gun . | . . . . Ballistic Cannon 1 | . . . 1 Launcher . | . . . . Special Weapon . | . . . . Impact Weapon . | . . . . Slashing Weapon . | . . . . Piercing Weapon . | . . . . Special Melee Weapon . | . . . . Unidentified Prototypes . | . . . . Parts Lost 4 | . . . 4 Power 1 | . . . 1 Propulsion 2 | . . . 2 Utility . | . . . . Weapon 1 | . . . 1 Highest Loss Streak 2 | . . . 2 To Critical Strikes . | . . . . Average Backups 13 | 3 5 10 21 Power . | . . . . Propulsion 5 | 2 3 4 6 Utility 2 | . . 2 4 Weapon 5 | 1 2 3 9 Tool/Special . | . . . . Unused Backups 19 | . . . 19 Power . | . . . . Propulsion 6 | . . . 6 Utility 4 | . . . 4 Weapon 9 | . . . 9 Tool/Special . | . . . . Average Slot Usage (%) 98 | . 100 100 95 Engine 13 | . 14 14 12 Wheel 27 | . 28 28 27 Device 13 | . 14 14 12 Storage 14 | . 14 14 14 Energy Gun 26 | . 28 28 24 Peak Build Rating 21 | 7 7 11 21 Average Rating 9 | 4 7 8 12 On Entrance 6 | . 7 7 11 Avg Prop Armor Cover (%) . | . . . . Naked Turns . | . . . . Heaviest Build 93 | 15 15 90 93 Greatest Support 40 | 26 26 26 40 Greatest Overweight (x) 5 | . . 3 5 Average Overweight (x) 2 | . . 2 2 Largest Inventory Capacity 25 | 8 8 25 25 Average Capacity 21 | 7 8 22 25 Most Carried 25 | 6 5 18 25 Average Carried 14 | 3 5 10 22 Final Capacity 25 | 8 8 25 25 Final Carried 25 | 5 5 18 25 Class Distribution -------------------- 100% | Mutant Dominant Class ---------------- Mutant | -10/Materials Mutant | -10/Mines Mutant | -10/Subcaves Resources | -11 -10 -10 -10 ----------- Run | Yrd Mat Min Sub Matter Collected 300 | 270 . 20 10 Remotely . | . . . . Salvage Created 284 | 118 . 127 39 Parts 20 | 5 . 8 7 Haulers Intercepted . | . . . . Recyclers Shooed 1 | 1 . . . Parts Field Recycled . | . . . . Retrieved Matter . | . . . . Parts Self-Destructed 16 | . . . 16 Prevented . | . . . . Parts Restored . | . . . . Kills | -11 -10 -10 -10 ------- Run | Yrd Mat Min Sub Combat Hostiles Destroyed 4 | . . 3 1 Guns 3 | . . 3 . Cannons 1 | . . . 1 Classes Destroyed 4 | 2 . 1 1 Tunneler 2 | 1 . 1 . Recycler 2 | 1 . 1 . Swarmer 3 | . . 3 . Subdweller 1 | . . . 1 Best Kill Streak 3 | 2 . 3 1 Combat Bots Only 3 | . . 3 1 Max Kills in Single Turn 1 | 1 . 1 1 Gunslinging . | . . . . Exploded . | . . . . Melee . | . . . . Uniques/NPCs Destroyed . | . . . . Combat | -11 -10 -10 -10 -------- Run | Yrd Mat Min Sub Hostile Shots Fired 84 | . 12 17 55 Missed 26 | . 3 6 17 Hits 58 | . 9 11 38 Projectile 58 | . 9 11 38 AOE 2 | . . . 2 Critical Strikes 1 | . . . 1 Damage Taken 981 | . 73 87 821 Core 260 | . 25 . 235 Absorbed by Shields . | . . . . Ignored by Resistances 37 | . . . 37 Core Remaining (%) 100 | 100 . . . Volleys Fired 33 | 5 2 12 14 Largest 2 | 2 2 2 2 Hottest 100 | 100 100 100 100 Shots Fired 57 | 10 4 24 19 Gun 48 | 10 4 24 10 Cannon 9 | . . . 9 Launcher . | . . . . Special . | . . . . Kinetic 9 | . . . 9 Thermal 48 | 10 4 24 10 Explosive . | . . . . Electromagnetic . | . . . . Robot Hit Streak 11 | 9 11 6 8 Robot Miss Streak 5 | . 1 4 5 Penetration Max 1 | . . . 1 Secondary Targets 1 | . . 1 . Max Gunslinging Chain 1 | . . 1 . Shots Hit Robots 37 | 9 3 14 11 Core Hits 13 | 3 . 6 4 Critical Kills 1 | . . . 1 Critical Parts Destroyed 1 | . . . 1 Critical Strikes 4 | 1 . . 3 Burn 1 | 1 . . . Destroy 3 | . . . 3 Melee Attacks . | . . . . Impact . | . . . . Slashing . | . . . . Piercing . | . . . . Sneak Attacks . | . . . . Combat Hostiles . | . . . . Follow-up Attacks . | . . . . Damage Inflicted 584 | 114 37 175 258 Guns 426 | 114 37 175 100 Cannons 158 | . . . 158 Explosions . | . . . . Melee . | . . . . Ramming . | . . . . Kinetic 158 | . . . 158 Thermal 426 | 114 37 175 100 Explosive . | . . . . Electromagnetic . | . . . . Impact . | . . . . Slashing . | . . . . Piercing . | . . . . Highest Corruption . | . . . . Average Corruption . | . . . . Corruption Purged . | . . . . Corruption Blocked . | . . . . Overload Shots . | . . . . Overflow Damage . | . . . . Projectiles . | . . . . Explosions . | . . . . Melee . | . . . . Knockbacks 2 | . . . 2 Impact . | . . . . Kinetic 2 | . . . 2 Secondary . | . . . . Self-Inflicted Damage . | . . . . Shots . | . . . . Rammed . | . . . . Targets Rammed . | . . . . Kicked . | . . . . Crushed . | . . . . Highest Temperature 273 | 156 39 273 . Average Temperature 88 | 71 24 105 . Received Heat Transfer 126 | . . . 126 Siege Activations . | . . . . Martial Activations . | . . . . Shielding Activations . | . . . . Robots Disrupted . | . . . . Combat Hostiles . | . . . . Robots Corrupted . | . . . . Combat Hostiles . | . . . . Parts Fried . | . . . . Impact Corruptions . | . . . . Robots Melted . | . . . . Combat Hostiles . | . . . . Parts Melted 5 | 3 . 2 . Heat Transferred 1332 | 407 111 518 296 Parts Sabotaged . | . . . . Parts Stolen . | . . . . Parts Stripped . | . . . . Power Chain Reactions . | . . . . Alert | -11 -10 -10 -10 ------- Run | Yrd Mat Min Sub Maximum Alert Level . | . . . . Low Security (%) 100 | 100 100 100 . Level 1 . | . . . . Level 2 . | . . . . Level 3 . | . . . . Level 4 . | . . . . Level 5 . | . . . . High Security . | . . . . Max Security . | . . . . Peak Influence 70 | 5 . 70 . Initial . | . . . . Average 8 | . . 10 . Influence Increases 90 | 10 . 80 . Destroy 0b10 Robot/C 60 | . . 60 . Destroy 0b10 Robot/NC 20 | 10 . 10 . Destroy Leader 10 | . . 10 . Influence Decreases 90 | 10 . 80 . Time Decay 90 | 10 . 80 . Squads Dispatched 2 | . 1 1 . Investigation 1 | . . 1 . Extermination . | . . . . Reinforcement 1 | . 1 . . Assault . | . . . . Garrison . | . . . . Intercept . | . . . . Searches Triggered . | . . . . Construction Impeded . | . . . . Haulers Reinforced . | . . . . Active Scanning Responses . | . . . . Cargo Convoy Interrupts . | . . . . Stealth | -11 -10 -10 -10 --------- Run | Yrd Mat Min Sub Distress Signals 2 | . 2 . . Communications Jammed . | . . . . Distress Signals . | . . . . Times Spotted 16 | . 6 2 8 Peak Tracking Total 6 | . 6 2 5 Tactical Retreats . | . . . . Traps | -11 -10 -10 -10 ------- Run | Yrd Mat Min Sub Traps Triggered . | . . . . Indirectly . | . . . . Trap Hack Attempts . | . . . . Triggered . | . . . . Disarmed . | . . . . Reprogrammed . | . . . . Reused . | . . . . Traps Extracted . | . . . . Installed . | . . . . Triggered . | . . . . Machines | -11 -10 -10 -10 ---------- Run | Yrd Mat Min Sub Machines Disabled . | . . . . Max in Single Turn . | . . . . Machines Repaired . | . . . . Machines Dismantled . | . . . . Machines Sabotaged . | . . . . Overloaded Fab Kills . | . . . . Hacking | -11 -10 -10 -10 --------- Run | Yrd Mat Min Sub Machines Accessed 1 | . . 1 . Terminals . | . . . . Fabricators . | . . . . Repair Stations . | . . . . Recycling Units . | . . . . Scanalyzers . | . . . . Garrison Access . | . . . . Total Hacks 1 | . . 1 . Successful 1 | . . 1 . Failed . | . . . . Catastrophic . | . . . . Database Lockouts . | . . . . Manual . | . . . . Terminals . | . . . . Fabricators . | . . . . Repair Stations . | . . . . Recycling Units . | . . . . Scanalyzers . | . . . . Garrison Access . | . . . . Terminal Hacks 1 | . . 1 . Open Door 1 | . . 1 . Fabricator Hacks . | . . . . Repair Station Hacks . | . . . . Recycling Unit Hacks . | . . . . Scanalyzer . | . . . . Garrison Access Hacks . | . . . . Unauthorized Hacks . | . . . . Terminals . | . . . . Fabricators . | . . . . Repair Stations . | . . . . Recycling Units . | . . . . Scanalyzers . | . . . . Garrison Access . | . . . . Data Cores Recovered . | . . . . Used . | . . . . Hacking Detections . | . . . . Full Trace Events . | . . . . Feedback Events . | . . . . Feedback Blocked . | . . . . Robot Schematics Acquired . | . . . . Robots Built . | . . . . Authchips . | . . . . Time . | . . . . Total Robot Build Rating . | . . . . Part Schematics Acquired . | . . . . Parts Built . | . . . . Authchips . | . . . . Time . | . . . . Total Part Build Rating . | . . . . Part Studies Acquired . | . . . . Parts Repaired . | . . . . Time . | . . . . Parts Recycled . | . . . . Recycled Matter . | . . . . Retrieved Matter . | . . . . Retrieved Components . | . . . . Parts Scanalyzed . | . . . . Part Schematics Acquired . | . . . . Parts Damaged . | . . . . Bothacking | -11 -10 -10 -10 ------------ Run | Yrd Mat Min Sub Used RIF Installer . | . . . . Robots Hacked . | . . . . Non-combat . | . . . . Combat . | . . . . Robot Hacks Applied . | . . . . Relay Couplers Released . | . . . . Fabnet Peak Effective % . | . . . . Robots Rewired . | . . . . Allies Hacked . | . . . . Hacks Repelled . | . . . . Allies | -11 -10 -10 -10 -------- Run | Yrd Mat Min Sub Total Allies . | . . . . Largest Group . | . . . . Highest-Rated Group . | . . . . Highest-Rated Ally . | . . . . Total Orders . | . . . . Ally Attacks . | . . . . Total Damage . | . . . . Kills . | . . . . Allies Corrupted . | . . . . Allies Melted . | . . . . Intel | -11 -10 -10 -10 ------- Run | Yrd Mat Min Sub Active Infowar (turns) 1025 | 15 83 532 395 Seismic 1025 | 15 83 532 395 Robot Analysis Total . | . . . . Derelict Logs Recovered 2 | . . 1 1 Drone Launches . | . . . . Drone Recoveries . | . . . . Exploration | -11 -10 -10 -10 ------------- Run | Yrd Mat Min Sub Turns Passed 1140 | 81 83 532 444 Spaces Moved 710 | 56 84 295 275 Core 7 | 7 . . . Treads . | . . . . Legs . | . . . . Wheels 703 | 49 84 295 275 Hover . | . . . . Flight . | . . . . Fastest Speed 50 | 50 90 90 129 Average Speed 122 | 85 90 129 133 Slowest Speed 175 | 90 90 135 175 Overloaded Moves . | . . . . Propulsion Burnouts . | . . . . Robots Hopped . | . . . . Potential Cave-ins . | . . . . Cave-ins Triggered . | . . . . Exploration Rate (%) 29 | 4 26 65 24 Regions Visited 3 Branch Regions 2 Pre-discovered Areas . | . . . . Known Exits Taken . | . . . . Unknown Exits Taken 3 | 1 1 1 . Scrap Searched 4 | . . 1 3 Spaces Dug . | . . . . Terrain Destroyed 4 | . . . 4 Melee . | . . . . Projectile 4 | . . . 4 AOE . | . . . . Terrain Rammed . | . . . . Walls Destroyed . | . . . . Machines Disabled . | . . . . Actions | -11 -10 -10 -10 --------- Run | Yrd Mat Min Sub Total 921 | 79 87 421 334 Wait 131 | . 2 100 29 Move 707 | 55 83 294 275 Hop . | . . . . Pick Up 34 | 12 . 13 9 Fast Attach . | . . . . Attach 8 | 7 . . 1 Detach . | . . . . Swap 6 | . . 2 4 Drop 2 | . . . 2 Fire 33 | 5 2 12 14 Melee . | . . . . Ram . | . . . . Kick . | . . . . Crush . | . . . . Escape Stasis . | . . . . Rewire . | . . . . Trap . | . . . . Miscellaneous . | . . . . Route ------- -11/Scrapyard -10/Materials -10/Mines (discovered 2 exits: [*Mat] / [*Sub]) -10/Subcaves (discovered 1 exit: Mat) History --------- Turn | Location | Event 6 | -11/Scrapyard | Discovered new exit (range 15) 82 | -11/Scrapyard | Entered Materials 154 | -10/Materials | Discovered new exit (range 13) 165 | -10/Materials | Entered Mines 170 | -10/Mines | Met a Derelict bent on vengeance 303 | -10/Mines | Build established: Mutant 350 | -10/Mines | Learned Materials emergency access door positions 428 | -10/Mines | A weapon hastily lodged in a ceiling crevice suddenly fell to the ground 501 | -10/Mines | Discovered new exit (range 10) 536 | -10/Mines | Met a Derelict shopkeep closing up shop 680 | -10/Mines | Discovered new exit (range 5) 697 | -10/Mines | Entered Subcaves 708 | -10/Subcaves | Shifting Twisted Machinery released Sub. Monowheel 721 | -10/Subcaves | Shifting Twisted Machinery released Sub. Laser 722 | -10/Subcaves | A swath of the cavern ceiling suddenly collapsed 741 | -10/Subcaves | Identified exit to Materials 1012 | -10/Subcaves | Curiously followed by a Cobbler waking with a query about "LVR3C" 1087 | -10/Subcaves | Core integrity fell below 50% 1135 | -10/Subcaves | Core integrity fell below 20% 1141 | -10/Subcaves | Destroyed by AC-I2U(R) with Subdweller Machine Gun Last Messages --------------- 01097_ 4T-V55(R) suffers critical hit (Destroy). 01097_ 4T-V55(R) knocked back. 01099_ EM Pulse Cannon destroyed. 01099_ HV Slug penetrates AM-PAD(R). 01099_ AM-PAD(R) suffers critical hit (Destroy). 01099_ AM-PAD(R) destroyed. 01100_ Subatomizers dissect the Sub. Optics. 01102_ AC-I2U(R) affixes Scrap Shield Fragment to Scrap Shield. 01104_ SE-Y7Z(O) collects matter. 01104_ 4T-V55(R) affixes Scrap Shield Fragment to Scrap Shield. 01108_ SE-Y7Z(O) collects matter. 01122_ SE-Y7Z(O) puts together Scrap Shield. 01137_ HV Slug penetrates Earth. 01138_ Subatomizers dissect the Sub. Optics. 01139_ Sub. Monowheel destroyed. 01141_ HV Slug penetrates AC-I2U(R). 01141_ AC-I2U(R) knocked back. 01141_ HV Slug penetrates AC-I2U(R). Map ----- +----------------------------------------------------+ | ????????????????????????????????????????? | | ??????????????#?????????????????????????? | | ??????????????# ???????????????? ?????? | | ??????????????# ????????????# ?? ????? | | ??????????????# ??????????# ??? #???? | | ??????????????# ???????### ??? ???? | | ??????????????# ??????# ???? ???? | | ??????????????# ????## ?????# ???? | | ??????????????# ?#### ?????## #???? | | ??????????????# ## ?????## ""##### | | ??????????????# #?????#""" " # | | ??????????????# #?????# "" " | | ??????????????# ###????# """ "" | | ???????????????# ! [ ##?### " | | ????????????????# = ! ### #??? | | ????????????????#* * =* ### ##?? | | ????????????????# [ !!##### ### ### | | ????????????????# & ####?# # | | ????????????????# ## #?# | | ????????????????# # #??# # #### # | | ???????????????## ;#???#######??## ## | | ??????????????## ##???????????### #? | | ??????????????# ;"#???????????#" ## | | ??????????????# %O####???????????###" # | | ??????????????## %##???????????????## | | ??????????????# @ R;#????????????????### | | ??????????????# ##??????????????????## | | ??????????????# R##????????????????????# | | ??????????????## #?????????????????????# | | ??????????????# #?????????????????????# | | ??????????????# #?????????????????????# | | ??????????????# #?????????????????????# | | ??????????????# #?????????????????#### | | ??????????????# ##?????????????????# | | ??????????????## ??????????????????## | | ??????????????? #??????????????????# | | ???????????????# #?????????????????## | | ??????????????? s##?????????????????# | | ???????????????# s#??????????????????## | | ????????????????s ??????????????????## | | ???????????????? #?????????????????## | | ???????????????? #????????????????## | | ???????????????? ????????????????# | | ???????????????? ????????????????###% | | ????????????????? ??????????????????# # | | ????????????????????????????????????# | | ????????????????????????????????????# # | | ??????????????????????????????????### # | | ??????????????????????????????????# %# # | | ??????????????????????????????????## | +----------------------------------------------------+ Best States ------------- Heat Dissipation 25 Energy Generation 10 Energy Capacity 250 Matter Stores 300 Matter Capacity 300 Sight Range 16 Terrain Scan Density 10 Armor Coverage 100 Resistance: TH 10 Evasion (%) 42 Item Schematics ----------------- None Robot Schematics ------------------ None Fabricated ------------ Nothing Repaired ---------- Nothing Studied --------- None Alien Tech Used ----------------- None Achievements -------------- None Challenges ------------ None Game ------ Seed DecoyCooledField Manual? 0 Play Time 00:09:57 Cumulative 109.0 hours Start 2025.12.03 @ 14:05:51 End 2025.12.03 @ 14:13:46 Sessions 1 Manual Loads 0 Difficulty Rogue Special Mode None Game No. 159 Rogue 159 Adventurer 0 Explorer 0 Win Type - Total 1 Types 1/0/0/0/0/0/0/0/0/0 Lore% 59 Gallery% 55 Achievement% 41 Wizard Run 0 Options --------- Layout 2 ASCII 0 Keyboard 0 Movement Mouse Keybinds 0 Fullscreen 1 Font 16/SmallcapsGlow Map View 25x24 Zoom Use 94% Tactical HUD 1 Map Filters NONE Filters NONE Steam SD RUN: e157a839-ff42-4959-a995-101dcca25ddd